bitfinex-derivatives/quotes_SOLF0:USTF0_20251101
["timestamp","ask_amount","ask_price","bid_price","bid_amount"]
[1762025660556,0.62,185.87,185.78,2.81]
[1762025660756,0.62,185.87,185.74,5.0114925]
[1762025660757,76.82,185.87,185.8,2.81]
[1762025661147,79.46040044,185.88,185.8,2.81]
[1762025661352,3.26040044,185.88,185.8,2.81]
[1762025661555,79.44040044,185.88,185.8,2.81]
[1762025664254,0.62,185.87,185.8,2.81]
[1762025665754,230.47637062,185.87,185.8,2.81]
[1762025666258,229.85637062,185.87,185.8,2.81]
[1762025668554,229.85637062,185.87,185.82,2.76]
[1762025671749,229.85637062,185.87,185.83,4.3541595]
[1762025671953,229.85637062,185.87,185.84,2.76]
[1762025681955,230.47637062,185.87,185.84,2.76]
[1762025684563,306.55637062,185.87,185.84,2.76]
[1762025686363,306.55637062,185.87,185.8,4.3475628]
[1762025686364,3.88040044,185.86,185.82,2.71]
[1762025690375,3.26040044,185.86,185.82,2.71]
[1762025690678,305.93637062,185.87,185.82,2.71]
[1762025691977,306.55637062,185.87,185.82,2.71]
[1762025692667,0.62,185.86,185.82,2.71]
[1762025697282,2.08685911,185.84,185.82,2.71]
[1762025704379,2.08685911,185.84,185.83,7.06875829]
[1762025704581,2.70685911,185.84,185.83,4.35875829]
[1762025704779,0.62,185.83,185.8,2.71]
[1762025705080,0.62,185.83,185.81,7.06997906]
[1762025705270,0.62,185.83,185.81,2.71]
[1762025706279,2.08685911,185.82,185.81,2.71]
[1762025706466,2.08685911,185.82,185.81,7.07278779]
[1762025706673,2.70685911,185.82,185.81,4.36278779]
[1762025707182,2.70685911,185.82,185.81,4.36265689]
[1762025707781,2.08685911,185.82,185.81,7.30265689]
[1762025723793,2.08685911,185.82,185.79,2.69]
[1762025723794,0.62,185.81,185.79,2.69]
[1762025724290,2.70685911,185.82,185.79,2.69]
[1762025724493,2.08685911,185.82,185.79,2.69]
[1762025728986,2.70685911,185.82,185.79,2.69]
[1762025735798,0.62,185.81,185.75,5.02191918]
[1762025736004,2.08685911,185.78,185.77,2.69]
[1762025736205,2.08685911,185.78,185.77,7.0316253]
[1762025737300,2.70685911,185.78,185.77,4.3416253]
[1762025738398,2.08685911,185.78,185.77,7.2316253]
[1762025738708,2.70685911,185.78,185.77,4.3416253]
[1762025740003,0.62,185.77,185.74,2.89]
[1762025740199,2.08685911,185.75,185.74,2.89]
[1762025746508,2.70685911,185.75,185.74,2.89]
[1762025746713,2.08685911,185.75,185.72,2.89]
[1762025748214,0.62,185.74,185.72,2.89]
[1762025749012,2.70685911,185.75,185.72,2.89]
[1762025749320,0.62,185.74,185.72,2.89]
[1762025752122,2.08685911,185.75,185.72,2.89]
[1762025752322,2.70685911,185.75,185.72,2.89]
[1762025755023,0.62,185.74,185.72,2.89]
[1762025761020,3.8842603,185.76,185.72,2.89]
[1762025761921,0.62,185.75,185.72,2.89]
[1762025762117,3.8842603,185.76,185.72,2.89]
[1762025762325,0.62,185.75,185.72,2.89]
[1762025763625,0.62,185.79,185.72,2.89]
[1762025763825,0.62,185.84,185.74,2.89]
[1762025764629,0.62,185.8,185.74,2.89]
[1762025766933,0.62,185.83,185.75,4.29678872]
[1762025767137,0.62,185.83,185.76,2.69]
[1762025777039,3.8842603,185.81,185.76,2.69]
[1762025777240,0.62,185.8,185.73,2.69]
[1762025777439,0.62,185.8,185.74,6.9942108]
[1762025777643,0.62,185.8,185.74,2.69]
[1762025778851,75.94,185.84,185.71,2.69]
[1762025778852,0.62,185.76,185.71,2.69]
[1762025779057,0.62,185.76,185.72,6.99645773]
[1762025779261,0.62,185.76,185.72,2.69]
[1762025779462,0.62,185.76,185.69,2.69]
[1762025779762,0.62,185.76,185.7,4.30704882]
[1762025779960,0.62,185.76,185.71,6.99704882]
[1762025780154,0.62,185.76,185.71,2.69]
[1762025803084,2.89685102,185.75,185.71,2.69]
[1762025803273,2.28685102,185.74,185.71,2.69]
[1762025803580,2.28685102,185.73,185.71,2.69]
[1762025803882,2.28685102,185.72,185.71,2.69]
[1762025812595,2.89685102,185.72,185.65,2.89]
[1762025812887,2.89685102,185.71,185.67,2.89]
[1762025813088,2.28685102,185.7,185.67,2.89]
[1762025813387,2.28685102,185.69,185.67,2.89]
[1762025813583,2.28685102,185.68,185.67,2.89]
[1762025813788,2.28680585,185.68,185.67,2.89]
[1762025814584,0.61,185.71,185.67,2.89]
[1762025814789,2.28702555,185.7,185.67,2.89]
[1762025815087,2.28702555,185.69,185.67,2.89]
[1762025815278,2.28702555,185.68,185.67,2.89]
[1762025815479,0.61,185.71,185.68,2.89]
[1762025815788,2.89731213,185.7,185.68,2.89]
[1762025815990,2.28731213,185.69,185.68,2.89]
[1762025817288,4.98793467,185.69,185.66,2.89]
[1762025817489,2.28731213,185.68,185.66,2.89]
[1762025817689,2.28731213,185.67,185.66,2.89]
[1762025820491,2.28913121,185.67,185.66,2.89]
[1762025821880,2.28947579,185.67,185.66,2.89]
[1762025823285,2.28946723,185.67,185.66,2.89]
[1762025826988,2.28858904,185.67,185.66,2.89]
[1762025827697,2.09062254,185.69,185.66,2.89]
[1762025827893,2.28842219,185.68,185.66,2.89]
[1762025828096,2.28842219,185.67,185.66,2.89]
[1762025829401,2.70062254,185.69,185.66,2.89]
[1762025829600,2.28815559,185.68,185.66,2.89]
[1762025829801,2.28815559,185.67,185.66,2.89]
[1762025830904,2.28795308,185.67,185.66,2.89]
[1762025831205,2.28785769,185.67,185.66,2.89]
[1762025836803,2.28752371,185.67,185.66,2.89]
[1762025841210,2.28752371,185.67,185.66,7.20527731]
[1762025841409,2.28790702,185.67,185.66,7.20527731]
[1762025841612,2.28790702,185.67,185.66,2.89]
[1762025842612,2.28790702,185.67,185.66,7.20525737]
[1762025844211,2.28790702,185.67,185.66,2.89]
[1762025844406,2.91790702,185.67,185.64,2.89]
[1762025844715,2.09062254,185.72,185.64,2.89]
[1762025844716,2.91790702,185.66,185.64,2.89]
[1762025845016,2.28790702,185.65,185.64,2.89]
[1762025845405,2.28790702,185.65,185.6,2.89]
[1762025845406,2.91790702,185.65,185.6,2.89]
[1762025845606,2.28790702,185.64,185.62,2.89]
[1762025845806,2.28790702,185.63,185.62,2.89]
[1762025846002,2.28790702,185.63,185.62,7.20821825]
[1762025847413,2.28871811,185.63,185.62,7.20821825]
[1762025848712,2.28875421,185.63,185.62,7.20821825]
[1762025850019,0.63,185.68,185.62,7.20821825]
[1762025850222,0.63,185.66,185.62,2.89]
[1762025850421,2.28887193,185.65,185.63,7.20929462]
[1762025850721,2.28887193,185.64,185.63,2.89]
[1762025851022,2.28887193,185.64,185.63,7.20915279]
[1762025851819,2.28887193,185.64,185.63,2.89]
[1762025852320,2.28887193,185.64,185.63,7.21009377]
[1762025852522,2.28791638,185.64,185.63,7.21009377]
[1762025854021,2.28791638,185.64,185.63,2.89]
[1762025854228,2.28791638,185.64,185.63,7.21025813]
[1762025855325,2.2883257,185.64,185.63,7.21200029]
[1762025856230,2.2883257,185.64,185.63,2.89]
[1762025856621,2.28892031,185.64,185.63,2.89]
[1762025856828,2.28899057,185.64,185.63,2.89]
[1762025857221,2.28899057,185.64,185.63,7.21318231]
[1762025857420,2.28899057,185.64,185.63,2.89]
[1762025858627,2.28914478,185.64,185.63,7.21281829]
[1762025859021,2.28920858,185.64,185.63,7.21281829]
[1762025859835,2.09062254,185.69,185.64,2.89]
[1762025860026,2.28955251,185.68,185.64,2.89]
[1762025860225,2.28955251,185.67,185.64,2.89]
[1762025860420,2.28955251,185.66,185.64,2.89]
[1762025860625,2.28955251,185.65,185.64,2.89]
[1762025860918,2.72062254,185.69,185.64,2.89]
[1762025860919,2.09062254,185.69,185.64,4.3235543]
[1762025861123,0.63,185.67,185.65,2.89]
[1762025861329,2.28986397,185.66,185.65,2.89]
[1762025863323,2.28986397,185.66,185.65,7.21460351]
[1762025867933,0.63,185.72,185.66,2.89]
[1762025868134,2.91868448,185.71,185.68,2.89]
[1762025868334,2.28868448,185.7,185.68,2.89]
[1762025868640,2.28868448,185.69,185.68,2.89]
[1762025869141,2.28868448,185.69,185.68,7.21336953]
[1762025869331,2.91868448,185.69,185.68,4.32336953]
[1762025869533,2.91868448,185.69,185.66,2.89]
[1762025869841,2.28868448,185.68,185.67,7.21304007]
[1762025871439,2.28868448,185.68,185.67,4.32304007]
[1762025871646,2.91868448,185.68,185.67,4.32304007]
[1762025871831,2.28868448,185.68,185.67,7.21304007]
[1762025873651,2.28785879,185.68,185.67,7.21304007]
[1762025874253,2.28792899,185.68,185.67,7.21304007]
[1762025875152,0.63,185.71,185.67,4.32304007]
[1762025875345,2.91767766,185.7,185.68,2.89]
[1762025875552,2.28767766,185.69,185.68,2.89]
[1762025876756,2.28765012,185.69,185.68,2.89]
[1762025877956,2.28755641,185.69,185.68,2.89]
[1762025878861,2.28739634,185.69,185.68,2.89]
[1762025879258,2.28738034,185.69,185.68,2.89]
[1762025881056,2.28731134,185.69,185.68,2.89]
[1762025881864,2.28736788,185.69,185.68,2.89]
[1762025882856,2.28746567,185.69,185.68,2.89]
[1762025883056,2.91746567,185.69,185.65,2.89]
[1762025883255,3.26548369,185.71,185.62,2.89]
[1762025883256,2.91746567,185.68,185.62,2.89]
[1762025883566,0.63,185.66,185.63,4.32266982]
[1762025883865,2.28746567,185.65,185.64,4.32266982]
[1762025884458,2.91746567,185.65,185.64,4.32266982]
[1762025885269,2.91705192,185.65,185.64,4.32266982]
[1762025886364,0.63,185.64,185.6,2.89]
[1762025886566,2.91705192,185.63,185.61,4.32353157]
[1762025886866,2.28705192,185.62,185.6,2.89]
[1762025887059,2.28705192,185.61,185.6,2.89]
[1762025887259,2.28705192,185.61,185.6,7.21359193]
[1762025887755,2.28521698,185.61,185.6,7.21359193]
[1762025888162,2.28521698,185.61,185.6,7.21272208]
[1762025888362,0.63,185.63,185.6,7.21272208]
[1762025888564,2.28519275,185.62,185.6,2.89]
[1762025888763,2.28519275,185.61,185.6,2.89]
[1762025888963,2.28519275,185.61,185.6,7.21220981]
[1762025891072,2.28519275,185.61,185.6,7.21086873]
[1762025892271,2.28369046,185.61,185.6,4.32086873]
[1762025892472,2.28369046,185.61,185.56,0.93772736]
[1762025892670,2.28369046,185.6,185.56,0.93772736]
[1762025892860,0.63,185.63,185.58,2.69]
[1762025893060,0.63,185.63,185.6,2.69]
[1762025895162,3.88548369,185.67,185.6,2.69]
[1762025895671,0.62,185.66,185.6,2.69]
[1762025896069,0.62,185.66,185.62,2.69]
[1762025918585,3.26548369,185.67,185.62,2.69]
[1762025918781,0.62,185.66,185.62,2.69]
[1762025922298,3.26548369,185.67,185.62,2.69]
[1762025923198,0.62,185.67,185.62,2.69]
[1762025924592,3.26548369,185.71,185.62,2.69]
[1762025924799,0.62,185.7,185.62,2.69]
[1762025928401,0.62,185.7,185.64,2.95]
[1762025939105,76.58,185.7,185.64,2.95]
[1762025939309,2.09104489,185.67,185.64,2.95]
[1762025941314,2.09104489,185.7,185.66,2.95]
[1762025941612,2.09104489,185.7,185.68,2.95]
[1762025957921,2.70104489,185.7,185.68,2.95]
[1762025966128,2.70104489,185.7,185.65,2.69]
[1762025966129,0.62,185.69,185.65,2.69]
[1762025973939,2.09104489,185.7,185.65,2.69]
[1762025974331,2.71104489,185.7,185.65,2.69]
[1762025976334,0.62,185.73,185.65,2.69]
[1762025976635,2.09104489,185.71,185.67,2.69]
[1762025976824,2.09104489,185.71,185.69,2.77]
[1762025981637,13.39740849,185.84,185.69,2.77]
[1762025981638,2.09104489,185.74,185.69,2.77]
[1762025981932,0.62,185.73,185.69,2.77]
[1762025982135,2.09104489,185.74,185.69,2.77]
[1762025985639,2.71104489,185.74,185.7,4.31586316]
[1762025985942,2.71104489,185.74,185.71,2.77]
[1762025989733,0.62,185.73,185.67,2.77]
[1762025989937,0.62,185.73,185.69,2.77]
[1762025989938,2.09104489,185.71,185.69,2.77]
[1762025990446,0.62,185.7,185.61,5.03756943]
[1762025990746,0.62,185.7,185.59,6.68483031]
[1762025990747,2.09104489,185.66,185.63,2.77]
[1762025990936,2.09104489,185.66,185.62,4.31400546]
[1762025990937,2.09104489,185.66,185.65,2.77]
[1762025998051,2.09104489,185.66,185.59,2.77]
[1762025998052,0.62,185.65,185.59,2.77]
[1762025998252,0.62,185.65,185.61,2.77]
[1762025998453,0.62,185.65,185.62,7.09722586]
[1762025998748,0.62,185.65,185.62,2.77]
[1762026000964,2.09104489,185.66,185.62,2.77]
[1762026001153,2.71104489,185.66,185.63,4.3259406]
[1762026001463,0.62,185.66,185.63,2.77]
[1762026001667,3.26764049,185.67,185.63,2.77]
[1762026001967,3.88764049,185.71,185.65,2.77]
[1762026010461,0.62,185.71,185.65,2.77]
[1762026010668,0.62,185.71,185.67,2.9]
[1762026011769,0.63,185.75,185.67,2.9]
[1762026011965,0.63,185.75,185.68,2.9]
[1762026012160,0.63,185.75,185.64,4.32507084]
[1762026012365,0.63,185.75,185.66,2.9]
[1762026013573,0.63,185.75,185.67,4.32481838]
[1762026013763,0.63,185.75,185.67,2.9]
[1762026017374,0.63,185.75,185.62,4.32514021]
[1762026017575,0.63,185.71,185.64,2.9]
[1762026021773,0.61,185.67,185.64,2.9]
[1762026023979,3.26764049,185.7,185.64,2.9]
[1762026024279,0.61,185.69,185.64,2.9]
[1762026027971,0.61,185.69,185.6,2.9]
[1762026028171,0.61,185.69,185.62,2.9]
[1762026033384,0.61,185.69,185.63,7.22354312]
[1762026033683,0.61,185.69,185.63,2.9]
[1762026036586,3.26764049,185.7,185.63,2.9]
[1762026039975,3.26764049,185.7,185.65,2.71]
[1762026042994,2.28787848,185.69,185.65,2.71]
[1762026043184,2.28787848,185.68,185.65,2.71]
[1762026043384,2.28787848,185.67,185.65,2.71]
[1762026043682,2.28787848,185.66,185.65,2.71]
[1762026047388,2.28829187,185.66,185.65,2.71]
[1762026047790,3.89764049,185.7,185.65,2.71]
[1762026047984,2.28829187,185.69,185.65,2.71]
[1762026048184,2.28829187,185.68,185.65,2.71]
[1762026048481,2.28829187,185.67,185.65,2.71]
[1762026048693,2.28829187,185.66,185.65,2.71]
[1762026048895,2.28829187,185.66,185.65,7.03617159]
[1762026049993,3.89764049,185.7,185.65,7.03617159]
[1762026050189,2.2884559,185.69,185.61,5.04118687]
[1762026050390,2.2884559,185.68,185.62,4.32618411]
[1762026050691,2.2888875,185.67,185.64,2.71]
[1762026050895,0.63,185.73,185.66,2.71]
[1762026051088,2.28925969,185.72,185.68,2.71]
[1762026051395,2.28925969,185.71,185.68,2.71]
[1762026051594,2.28925969,185.7,185.68,2.71]
[1762026051791,2.28925969,185.69,185.68,2.71]
[1762026051986,0.63,185.73,185.69,2.71]
[1762026052186,2.28902054,185.72,185.69,2.71]
[1762026052388,2.28902054,185.71,185.69,2.71]
[1762026052588,2.28902054,185.7,185.69,2.71]
[1762026053487,0.63,185.73,185.69,2.71]
[1762026053694,3.26764049,185.74,185.69,2.71]
[1762026053695,2.91849596,185.72,185.69,2.71]
[1762026053885,2.28855835,185.71,185.69,2.71]
[1762026054091,2.28855835,185.7,185.69,2.71]
[1762026054292,2.28855835,185.7,185.69,7.03374545]
[1762026056296,2.28855835,185.7,185.69,7.03187177]
[1762026057199,2.28694095,185.7,185.69,4.32187177]
[1762026057594,2.28694098,185.7,185.64,5.03570036]
[1762026057799,2.28694098,185.69,185.66,2.71]
[1762026058000,2.28694098,185.68,185.67,7.03039065]
[1762026059195,0.63,185.73,185.68,2.71]
[1762026059404,2.28588421,185.72,185.68,2.71]
[1762026059600,2.28588421,185.71,185.68,2.71]
[1762026059907,2.28588421,185.7,185.69,7.02914691]
[1762026061201,2.28588421,185.7,185.69,7.02897078]
[1762026062402,2.28588421,185.7,185.69,2.71]
[1762026062603,2.28552413,185.7,185.69,2.71]
[1762026062807,2.28552413,185.7,185.69,7.02738366]
[1762026063002,2.71960719,185.73,185.7,2.71]
[1762026063208,2.28525502,185.72,185.7,2.71]
[1762026063510,2.28520744,185.71,185.7,2.71]
[1762026065401,2.28446811,185.71,185.7,2.71]
[1762026066311,2.28416574,185.71,185.7,2.71]
[1762026067310,2.08960719,185.73,185.7,2.71]
[1762026067507,2.28395818,185.72,185.7,2.71]
[1762026067709,2.28395818,185.71,185.7,2.71]
[1762026072903,2.28395818,185.71,185.66,2.68]
[1762026073116,2.28395818,185.7,185.68,2.68]
[1762026073314,2.28395818,185.69,185.68,2.68]
[1762026073610,2.08960719,185.75,185.69,2.68]
[1762026073818,2.29201334,185.74,185.69,2.68]
[1762026074114,2.29201334,185.73,185.69,2.68]
[1762026074316,2.29199353,185.72,185.69,2.68]
[1762026074512,2.29199353,185.71,185.69,2.68]
[1762026074712,2.29199353,185.7,185.69,2.68]
[1762026074913,2.29199353,185.7,185.69,6.99330078]
[1762026081723,2.29199353,185.7,185.69,2.68]
[1762026084426,2.29199353,185.7,185.69,6.99651613]
[1762026085412,2.29406268,185.7,185.64,4.85]
[1762026085617,2.29406268,185.69,185.65,4.31696186]
[1762026085818,2.29406268,185.68,185.66,4.31696186]
[1762026086015,0.62,185.74,185.68,2.86]
[1762026086221,2.91388191,185.73,185.7,2.86]
[1762026086421,2.29388191,185.72,185.7,2.86]
[1762026086623,2.29388191,185.71,185.7,2.86]
[1762026088219,2.29388191,185.71,185.7,7.17837942]
[1762026088426,0.00388191,185.71,185.7,7.17837942]
[1762026088624,170.89125681,185.79,185.71,2.86]
[1762026088814,170.89125681,185.79,185.73,2.86]
[1762026090733,2.67,185.78,185.75,2.86]
[1762026093134,2.08960719,185.79,185.75,2.86]
[1762026093631,2.67,185.81,185.76,4.31823969]
[1762026093829,2.67,185.81,185.77,2.86]
[1762026098729,2.67,185.81,185.79,2.74]
[1762026106235,2.08960719,185.82,185.79,2.74]
[1762026107229,4.88960719,185.82,185.79,2.74]
[1762026112655,2.8,185.81,185.79,2.74]
[1762026113143,2.8,185.81,185.76,2.74]
[1762026113751,2.8,185.79,185.76,2.74]
[1762026114337,4.88960719,185.8,185.76,2.74]
[1762026115846,2.8,185.79,185.76,2.74]
[1762026118142,2.8,185.79,185.74,4.32207656]
[1762026118346,2.8,185.79,185.69,2.08960719]
[1762026118347,2.8,185.76,185.72,2.74]
[1762026118546,2.8,185.76,185.73,4.32310901]
[1762026118953,2.8,185.76,185.73,7.06310901]
[1762026119144,2.8,185.76,185.73,2.74]
[1762026121958,2.8,185.8,185.73,2.74]
[1762026122860,2.8,185.8,185.74,7.06541763]
[1762026123056,2.8,185.8,185.74,2.74]
[1762026125353,2.8,185.8,185.76,2.74]
[1762026129465,2.8,185.8,185.72,2.71]
[1762026129667,2.8,185.8,185.73,7.04169372]
[1762026129868,2.8,185.8,185.74,7.04169372]
[1762026130061,2.8,185.8,185.75,7.04169372]
[1762026130261,2.8,185.8,185.75,2.71]
[1762026130662,2.8,185.8,185.76,7.0432917]
[1762026130866,2.8,185.8,185.76,2.71]
[1762026131959,2.8,185.8,185.73,2.71]
[1762026132160,2.8,185.8,185.74,7.04514468]
[1762026132361,2.8,185.8,185.75,7.04514468]
[1762026132562,2.8,185.8,185.76,7.04514468]
[1762026132761,2.8,185.8,185.76,2.71]
[1762026135166,2.8,185.8,185.72,5.03042855]
[1762026135167,2.8,185.8,185.73,2.71]
[1762026135373,2.8,185.8,185.74,7.04813008]
[1762026135565,2.8,185.8,185.75,7.04813008]
[1762026135768,2.8,185.8,185.76,4.33813008]
[1762026136065,2.8,185.8,185.77,4.33813008]
[1762026136268,2.8,185.8,185.75,2.71]
[1762026136469,2.8,185.8,185.76,7.04866773]
[1762026136656,2.8,185.8,185.77,4.33866773]
[1762026136862,2.8,185.8,185.76,2.71]
[1762026137063,2.8,185.8,185.77,4.33900458]
[1762026137370,2.8,185.8,185.76,2.71]
[1762026137570,2.8,185.8,185.77,4.3390725]
[1762026137771,2.8,185.8,185.76,2.71]
[1762026138070,2.8,185.8,185.77,4.33944677]
[1762026138272,2.8,185.8,185.76,2.71]
[1762026138464,2.8,185.8,185.77,4.33950246]
[1762026138661,2.8,185.8,185.76,2.71]
[1762026138865,2.8,185.8,185.77,4.33960966]
[1762026139068,2.8,185.8,185.76,2.71]
[1762026139369,2.8,185.8,185.77,4.33960966]
[1762026139577,2.8,185.8,185.71,4.848]
[1762026139578,2.81,185.82,185.78,2.71]
[1762026144178,6.05310381,185.85,185.78,2.71]
[1762026144376,2.79,185.84,185.78,2.71]
[1762026146068,2.79,185.84,185.8,2.68]
[1762026150980,2.79,185.84,185.82,2.68]
[1762026151582,2.79,185.84,185.76,5.03419697]
[1762026151880,2.79,185.84,185.78,2.68]
[1762026152080,2.79,185.84,185.8,2.68]
[1762026152277,2.79,185.84,185.82,2.68]
[1762026154185,2.79,185.84,185.79,2.68]
[1762026154378,2.79,185.84,185.8,7.01589491]
[1762026154578,2.79,185.84,185.81,4.33589491]
[1762026154786,2.79,185.84,185.8,2.68]
[1762026155080,2.79,185.87,185.82,2.68]
[1762026159187,2.79,185.87,185.77,5.02995165]
[1762026159389,2.79,185.87,185.78,7.25264304]
[1762026159583,2.79,185.87,185.79,7.25264304]
[1762026159881,2.79,185.87,185.8,4.33264304]
[1762026160077,2.79,185.87,185.79,2.92]
[1762026160391,2.79,185.87,185.8,4.33343987]
[1762026160592,2.79,185.87,185.8,2.92]
[1762026161591,2.8,185.85,185.77,2.92]
[1762026161791,2.8,185.85,185.78,4.33384836]
[1762026161982,2.8,185.85,185.77,2.92]
[1762026162185,2.8,185.85,185.78,4.33403345]
[1762026162382,2.8,185.85,185.77,2.92]
[1762026162588,2.8,185.85,185.78,4.33403863]
[1762026162888,2.8,185.85,185.77,2.92]
[1762026163085,2.8,185.85,185.78,7.25404483]
[1762026163287,2.8,185.85,185.78,2.92]
[1762026175701,2.8,185.85,185.79,4.33689654]
[1762026175910,2.8,185.85,185.79,2.92]
[1762026182418,2.8,185.85,185.81,2.92]
[1762026183026,16.46128674,185.92,185.81,2.92]
[1762026183225,2.8,185.91,185.81,2.92]
[1762026183523,2.8,185.91,185.83,2.92]
[1762026183524,2.8,185.9,185.83,2.92]
[1762026192923,2.91,185.93,185.83,2.92]
[1762026193225,2.91,185.93,185.75,6.68483031]
[1762026193226,2.91,185.97,185.86,2.79]
[1762026193423,2.91,185.97,185.88,2.79]
[1762026193725,2.91,185.97,185.89,2.79]
[1762026196223,15.92652211,186.01,185.86,2.79]
[1762026196224,2.91,185.94,185.86,2.79]
[1762026196628,2.91,185.91,185.83,2.79]
[1762026203222,2.91,185.91,185.83,7.10789353]
[1762026203435,2.91,185.91,185.84,2.78]
[1762026212139,2.91,185.91,185.85,2.08593146]
[1762026212331,2.91,185.91,185.86,2.78]
[1762026220043,2.8,185.94,185.86,2.78]
[1762026220235,2.8,185.94,185.89,2.87]
[1762026238460,2.8,185.93,185.87,9.34319449]
[1762026239365,2.8,185.93,185.88,2.87]
[1762026252471,2.8,185.93,185.87,9.34319449]
[1762026252472,2.8,185.93,185.9,2.87]
[1762026252673,2.91,185.98,185.9,2.87]
[1762026253276,2.91,185.98,185.92,2.87]
[1762026261872,2.91,185.98,185.88,2.93]
[1762026262072,2.91,185.98,185.89,7.26104845]
[1762026262368,2.91,185.98,185.89,2.93]
[1762026263882,2.91,185.98,185.91,2.93]
[1762026282803,2.91,185.98,185.92,4.32758576]
[1762026283002,2.91,185.98,185.93,2.84]
[1762026300914,2.91,185.98,185.88,5.02880506]
[1762026301113,2.91,185.98,185.9,2.84]
[1762026301319,2.91,185.98,185.92,2.84]
[1762026302220,2.9,185.95,185.88,2.84]
[1762026302416,75.78,185.97,185.89,4.33673616]
[1762026302417,2.9,185.92,185.89,4.33673616]
[1762026302621,2.9,185.92,185.87,9.34319449]
[1762026303422,2.9,185.88,185.87,9.34319449]
[1762026304308,2.9,185.88,185.79,78.19656093]
[1762026304521,2.9,185.88,185.81,2.84]
[1762026304522,2.08589558,185.86,185.81,2.84]
[1762026304712,4.98589558,185.86,185.83,2.84]
[1762026305112,2.08589558,185.86,185.83,2.84]
[1762026306008,4.98589558,185.89,185.83,2.84]
[1762026306210,4.98589558,185.89,185.79,78.19656093]
[1762026306211,2.08589558,185.89,185.85,2.84]
[1762026306408,4.98589558,185.92,185.85,2.84]
[1762026307220,4.98589558,185.92,185.87,2.83]
[1762026307634,2.74,185.91,185.87,2.83]
[1762026310924,2.74,185.96,185.87,2.83]
[1762026311223,2.08589558,185.94,185.87,2.83]
[1762026312122,2.74,185.96,185.87,2.83]
[1762026312423,2.74,185.96,185.89,2.83]
[1762026333436,2.74,185.96,185.91,2.69]
[1762026338941,2.08589558,185.97,185.91,2.69]
[1762026343837,4.92589558,186.0,185.93,2.85]
[1762026345043,2.84,185.96,185.93,2.85]
[1762026347849,4.92589558,185.97,185.93,2.85]
[1762026349042,2.08589558,185.97,185.93,2.85]
[1762026351445,4.92589558,186.0,185.93,2.85]
[1762026352051,2.84,185.99,185.93,2.85]
[1762026354247,2.08589558,186.0,185.93,2.85]
[1762026356456,2.08589558,186.0,185.95,2.85]
[1762026356656,4.92589558,186.0,185.95,2.85]
[1762026357956,2.84,186.02,185.97,2.85]
[1762026358354,13.38359133,186.13,185.97,2.85]
[1762026358355,2.84,186.05,185.97,2.85]
[1762026358554,2.84,186.04,185.97,2.85]
[1762026365058,2.84,186.09,185.99,2.85]
[1762026366869,2.84,186.09,186.01,2.76]
[1762026372054,2.84,186.09,185.96,2.76]
[1762026372259,2.84,186.09,185.98,2.76]
[1762026372454,2.84,186.09,185.99,2.76]
[1762026388461,3.25215194,186.07,185.99,2.76]
[1762026388669,2.7,186.06,185.99,2.76]